bitfinex/quotes_BTCUSD_20260103
["timestamp","ask_amount","ask_price","bid_price","bid_amount"]
[1767474710441,0.01107579,90287.0,90283.0,0.01155797]
[1767474711472,0.05619348,90288.0,90284.0,0.01107615]
[1767474711672,0.01107579,90287.0,90284.0,0.01107615]
[1767474711872,0.05619348,90288.0,90284.0,0.01107615]
[1767474712021,0.01107579,90287.0,90283.0,0.01155797]
[1767474712623,0.01107591,90286.0,90283.0,0.00048169]
[1767474713991,0.01107591,90286.0,90283.0,0.01155797]
[1767474714699,0.01107579,90287.0,90283.0,0.01155797]
[1767474714897,0.01107591,90286.0,90283.0,0.00048169]
[1767474715419,0.06645592,90286.0,90283.0,0.00048169]
[1767474715631,0.01107579,90287.0,90283.0,0.06693927]
[1767474715804,0.01107566,90288.0,90284.0,0.01107615]
[1767474717954,0.01107566,90288.0,90283.0,0.00048169]
[1767474717955,0.01107579,90287.0,90283.0,0.00048169]
[1767474718157,0.01107579,90287.0,90283.0,0.01155797]
[1767474720490,0.01107591,90286.0,90283.0,0.00048169]
[1767474720655,0.0664544,90288.0,90283.0,0.06693899]
[1767474721058,0.00051731,90283.0,90282.0,0.0001494]
[1767474721260,0.05589872,90283.0,90282.0,0.0001494]
[1767474721454,0.06645666,90285.0,90282.0,0.0001494]
[1767474721663,0.05538141,90283.0,90282.0,0.0001494]
[1767474722234,0.0112254,90282.0,90278.0,0.02216]
[1767474722590,0.06645666,90285.0,90279.0,0.01107677]
[1767474722964,0.01107628,90283.0,90280.0,0.01107665]
[1767474723295,0.01059428,90283.0,90280.0,0.01107665]
[1767474723585,0.01059428,90283.0,90279.0,0.01107677]
[1767474724163,0.06645666,90285.0,90280.0,0.01107665]
[1767474724659,0.01107615,90284.0,90280.0,0.01107665]
[1767474725076,0.01107628,90283.0,90279.0,0.01107677]
[1767474725682,0.01107628,90283.0,90279.0,0.0110364]
[1767474726456,0.05717473,90283.0,90279.0,0.0110364]
[1767474726653,0.01107628,90283.0,90279.0,0.0110364]
[1767474727593,0.0110764,90282.0,90278.0,0.0664611]
[1767474729083,0.01107615,90284.0,90280.0,0.01107665]
[1767474729285,0.01107628,90283.0,90278.0,0.0664611]
[1767474730431,0.0110764,90282.0,90278.0,0.01107689]
[1767474732894,0.01107652,90281.0,90277.0,0.03323701]
[1767474733948,0.01107628,90283.0,90279.0,0.01107677]
[1767474737971,0.01107615,90284.0,90280.0,0.01107665]
[1767474738692,0.01107628,90283.0,90280.0,0.01107665]
[1767474739937,0.01107628,90283.0,90279.0,0.01107677]
[1767474742958,0.01107615,90284.0,90280.0,0.01107665]
[1767474743578,0.01107628,90283.0,90279.0,0.01107677]
[1767474751282,0.01107615,90284.0,90280.0,0.01107665]
[1767474753890,0.01107628,90283.0,90280.0,0.01107665]
[1767474757062,0.01107628,90283.0,90279.0,0.01107677]
[1767474760984,0.01107615,90284.0,90280.0,0.01107665]
[1767474761763,0.05855709,90284.0,90280.0,0.01107665]
[1767474761968,0.05855709,90284.0,90280.0,0.01007765]
[1767474763302,0.01107628,90283.0,90279.0,0.01107677]
[1767474763999,0.05855709,90284.0,90280.0,0.01107665]
[1767474767661,0.01107628,90283.0,90279.0,0.01107677]
[1767474768447,0.05855722,90283.0,90279.0,0.01107677]
[1767474769863,0.05855722,90283.0,90278.0,0.01646124]
[1767474770059,0.05855722,90283.0,90276.0,0.01611187]
[1767474770659,0.01107652,90281.0,90277.0,0.01107701]
[1767474770864,0.0110764,90282.0,90278.0,0.01107689]
[1767474771240,0.01107615,90284.0,90282.0,0.000999]
[1767474771800,0.01107615,90284.0,90280.0,0.01107665]
[1767474773715,0.01107615,90284.0,90280.0,0.05941704]
[1767474774743,0.01102883,90284.0,90280.0,0.05941704]
[1767474775272,0.01107628,90283.0,90280.0,0.05941704]
[1767474775495,0.01107628,90283.0,90280.0,0.04834039]
[1767474777786,0.01098864,90283.0,90280.0,0.04834039]
[1767474779586,0.01102883,90284.0,90280.0,0.05941704]
[1767474779749,0.01107591,90286.0,90283.0,0.04933939]
[1767474779957,0.05537935,90287.0,90281.0,0.06047752]
[1767474780138,0.05537994,90286.0,90281.0,0.01107652]
[1767474780335,0.06645671,90285.0,90280.0,0.01107665]
[1767474780759,0.0664573,90284.0,90279.0,0.01107677]
[1767474781429,0.05537994,90286.0,90279.0,0.01107677]
[1767474781430,0.01107591,90286.0,90279.0,0.01107677]
[1767474781632,0.01107603,90285.0,90280.0,0.01107665]
[1767474781777,0.01107615,90284.0,90280.0,0.01107665]
[1767474782596,0.01107603,90285.0,90281.0,0.01107652]
[1767474784380,0.01098839,90285.0,90281.0,0.01107652]
[1767474784788,0.06645586,90286.0,90282.0,0.0110764]
[1767474787285,0.06545686,90286.0,90282.0,0.0110764]
[1767474790577,0.06536922,90286.0,90282.0,0.0110764]
[1767474796589,0.00998927,90286.0,90282.0,0.0110764]
[1767474797370,0.01107603,90285.0,90281.0,0.01107652]
[1767474797518,0.00998927,90286.0,90282.0,0.0110764]
[1767474798965,0.00998927,90286.0,90281.0,0.01107652]
[1767474798966,0.000999,90282.0,90281.0,0.01107652]
[1767474799108,0.01107603,90285.0,90281.0,0.01107652]
[1767474803724,0.01098839,90285.0,90281.0,0.01107652]
[1767474804224,0.01098839,90285.0,90281.0,0.01007752]
[1767474804400,0.01107615,90284.0,90281.0,0.01007752]
[1767474805261,0.01107615,90284.0,90280.0,0.01107665]
[1767474807007,0.01107615,90284.0,90281.0,0.01107652]
[1767474807528,0.01098839,90285.0,90281.0,0.01107652]
[1767474808357,0.04550603,90284.0,90281.0,0.01107652]
[1767474809146,0.01107603,90285.0,90281.0,0.01107652]
[1767474809559,0.05658206,90285.0,90281.0,0.01107652]
[1767474810417,0.05658206,90285.0,90281.0,0.0110327]
[1767474811426,0.05658206,90285.0,90282.0,0.0110764]
[1767474811617,0.04550603,90285.0,90282.0,0.0110764]
[1767474812140,0.05658206,90285.0,90282.0,0.0110764]
[1767474812342,0.04550603,90285.0,90282.0,0.0110764]
[1767474813337,0.05658206,90285.0,90282.0,0.0110764]
[1767474813716,0.05658206,90285.0,90281.0,0.0110327]
[1767474816535,0.0554556,90284.0,90281.0,0.0110327]
[1767474817682,0.0554556,90284.0,90281.0,0.06641499]
[1767474818030,0.0544566,90284.0,90281.0,0.06641499]
[1767474818669,0.0560566,90284.0,90281.0,0.06641499]
[1767474818897,0.04758555,90283.0,90260.0,0.29515333]
[1767474819116,0.010999,90281.0,90270.0,0.31585398]
[1767474819307,0.01107554,90289.0,90270.0,0.31585398]
[1767474819308,0.0553753,90293.0,90283.0,0.01107628]
[1767474819535,0.02216,90292.0,90285.0,0.04924525]
[1767474819735,0.03321661,90294.0,90289.0,0.01107554]
[1767474819887,0.01107505,90293.0,90288.0,0.05285108]
[1767474820224,0.00159999,90291.0,90288.0,0.04167542]
[1767474820455,0.01267529,90291.0,90288.0,0.04167542]
[1767474821048,0.05537711,90290.0,90288.0,0.04167542]
[1767474822381,0.01107481,90295.0,90289.0,0.06032079]
[1767474822618,0.01107505,90293.0,90289.0,0.01107554]
[1767474822770,0.06659811,90296.0,90290.0,0.06032067]
[1767474822977,0.07753112,90300.0,90293.0,0.0603203]
[1767474823177,0.06644399,90302.0,90295.0,0.04924525]
[1767474823377,0.01107419,90300.0,90295.0,0.06032006]
[1767474823556,0.01107431,90299.0,90295.0,0.04924525]
[1767474823899,0.01107444,90298.0,90295.0,0.04924525]
[1767474824544,0.01107444,90298.0,90295.0,0.04824625]
[1767474824825,0.06644669,90298.0,90295.0,0.04824625]
[1767474824977,0.01107456,90297.0,90293.0,0.01107505]
[1767474825180,0.06644797,90297.0,90291.0,0.0110753]
[1767474825381,0.22145918,90311.0,90287.0,0.05537823]
[1767474825382,0.01,90291.0,90288.0,0.01107566]
[1767474825611,0.01,90291.0,90288.0,0.04428797]
[1767474825805,0.01,90291.0,90288.0,0.09353322]
[1767474826176,0.01107505,90293.0,90289.0,0.01107554]
[1767474827336,0.00159999,90292.0,90289.0,0.01107554]
[1767474830003,0.00159999,90292.0,90289.0,0.06645326]
[1767474831601,0.00159999,90292.0,90289.0,0.01107554]
[1767474832888,0.00159999,90292.0,90289.0,0.01061541]
[1767474833095,0.01107493,90294.0,90290.0,0.01107542]
[1767474834580,0.01107505,90293.0,90289.0,0.01061541]
[1767474835165,0.01267504,90293.0,90289.0,0.01061541]
[1767474837401,0.01107517,90292.0,90288.0,0.04428797]
[1767474838209,0.01267504,90293.0,90289.0,0.01107554]
[1767474838515,0.00159999,90293.0,90290.0,0.01107542]
[1767474839026,0.01267504,90293.0,90290.0,0.01107542]
[1767474839385,0.01267504,90293.0,90290.0,0.01115086]
[1767474840117,0.01107481,90295.0,90293.0,0.000999]
[1767474840324,0.0664493,90295.0,90293.0,0.000999]
[1767474840643,0.0664493,90295.0,90291.0,0.0110753]
[1767474840849,0.01107481,90295.0,90291.0,0.0110753]
[1767474842195,0.00159999,90294.0,90291.0,0.0110753]
[1767474842558,0.01267492,90294.0,90290.0,0.02230172]
[1767474844501,0.01267492,90294.0,90291.0,0.0110753]
[1767474844920,0.01267492,90294.0,90290.0,0.02230172]
[1767474845587,0.06804998,90294.0,90290.0,0.0112263]
[1767474845796,0.01267492,90294.0,90290.0,0.02230172]
[1767474846200,0.01267492,90294.0,90290.0,0.01483083]
[1767474846479,0.01267492,90294.0,90290.0,0.01107542]
[1767474848234,0.01107481,90295.0,90294.0,0.000999]
[1767474848661,0.01107481,90295.0,90291.0,0.0110753]
[1767474849083,0.05952838,90295.0,90291.0,0.0110753]
[1767474850351,0.00159999,90294.0,90291.0,0.0110753]
[1767474851616,0.01107468,90296.0,90294.0,0.000999]
[1767474852044,0.01107468,90296.0,90292.0,0.01107517]
[1767474853084,0.06644456,90301.0,90296.0,0.01107468]
[1767474853290,0.01107431,90299.0,90295.0,0.01107481]
[1767474853712,0.01107444,90298.0,90294.0,0.05537466]
[1767474853914,0.01107431,90299.0,90298.0,0.000999]
[1767474854352,0.01107431,90299.0,90294.0,0.06644959]
[1767474854558,0.01107431,90299.0,90164.0,0.47657428]
[1767474854559,0.0110737,90304.0,90299.0,0.01107431]
[1767474854770,0.31585398,90330.0,90299.0,0.01107431]
[1767474854771,0.01107297,90310.0,90303.0,0.01107382]
[1767474854972,0.01107297,90310.0,90305.0,0.01098243]
[1767474855390,0.01107309,90309.0,90304.0,0.0110737]
[1767474855593,0.01107309,90309.0,90305.0,0.06644149]
[1767474855786,0.01107297,90310.0,90306.0,0.01107346]
[1767474858204,0.02216,90313.0,90307.0,0.06643994]
[1767474858384,0.0332326,90313.0,90307.0,0.06643994]
[1767474858789,0.01122188,90314.0,90310.0,0.01107297]
[1767474859443,0.0110726,90313.0,90310.0,0.01107297]
[1767474859925,0.0110726,90313.0,90308.0,0.0664387]
[1767474860865,0.0110726,90313.0,90309.0,0.01107309]
[1767474861615,0.01107272,90312.0,90308.0,0.01107321]
[1767474861853,0.01,90309.0,90308.0,0.01107321]
[1767474862082,0.01107272,90312.0,90308.0,0.01107321]
[1767474866943,0.01107272,90312.0,90309.0,0.01107309]
[1767474867105,0.0110726,90313.0,90309.0,0.01107309]
[1767474867308,0.01107272,90312.0,90308.0,0.01107321]
[1767474870293,0.04769271,90311.0,90308.0,0.01107321]
[1767474870669,0.01107272,90312.0,90308.0,0.01107321]
[1767474870884,0.01107272,90312.0,90308.0,0.01093395]
[1767474871771,0.01107272,90312.0,90308.0,0.00724537]
[1767474873523,0.0110726,90313.0,90309.0,0.01107309]
[1767474873998,0.01122188,90314.0,90310.0,0.01107297]
[1767474876357,0.0110726,90313.0,90309.0,0.01107309]
[1767474879532,0.04906741,90312.0,90309.0,0.01107309]
[1767474879704,0.0110726,90313.0,90309.0,0.01107309]
[1767474880778,0.01122188,90314.0,90310.0,0.01107297]
[1767474881812,0.01107235,90315.0,90311.0,0.01107284]
[1767474882964,0.01107235,90315.0,90311.0,0.01093358]
[1767474883197,0.01107235,90315.0,90310.0,0.06643728]
[1767474883360,0.01107235,90315.0,90312.0,0.01107272]
[1767474883538,0.04605725,90316.0,90312.0,0.01107272]
[1767474883726,0.05712948,90316.0,90312.0,0.01007372]
[1767474887344,0.01107248,90314.0,90311.0,0.01107284]
[1767474888633,0.01107248,90314.0,90310.0,0.01107297]
[1767474888838,0.03496973,90314.0,90310.0,0.01107297]
[1767474891043,0.03496973,90314.0,90311.0,0.01107284]
[1767474891448,0.02389725,90314.0,90311.0,0.01107284]
[1767474891890,0.01107235,90315.0,90311.0,0.01107284]
[1767474892604,0.01107235,90315.0,90312.0,0.01107272]
[1767474896172,0.01107235,90315.0,90312.0,0.01102715]
[1767474896288,0.01107235,90315.0,90312.0,0.01098158]
[1767474896483,0.01107235,90315.0,90312.0,0.01093601]
[1767474898957,0.04906741,90314.0,90312.0,0.01093601]
[1767474899353,0.07296466,90314.0,90312.0,0.01093601]
[1767474899704,0.02389725,90314.0,90312.0,0.01093601]
[1767474899905,0.04605725,90316.0,90314.0,0.000999]
[1767474900054,0.02216,90316.0,90314.0,0.000999]
[1767474900259,0.02216,90316.0,90313.0,0.0110726]
[1767474900665,0.02216,90316.0,90313.0,0.00892518]
[1767474900894,0.02216,90316.0,90313.0,0.00886442]
[1767474901093,0.02216,90316.0,90314.0,0.0553624]
[1767474901305,0.04941724,90315.0,90312.0,0.06629928]
[1767474901640,0.04941724,90314.0,90311.0,0.01107284]
[1767474902091,0.01107235,90315.0,90311.0,0.01107284]
[1767474902266,0.01107248,90314.0,90310.0,0.01107297]
[1767474903011,0.01107235,90315.0,90310.0,0.06643776]
[1767474903900,0.01107235,90315.0,90311.0,0.01107284]
[1767474904718,0.03323223,90316.0,90312.0,0.01107272]
[1767474906896,0.02216,90316.0,90313.0,0.0110726]
[1767474907829,0.03323223,90316.0,90312.0,0.01107272]
[1767474909559,0.03323223,90316.0,90312.0,0.01102715]
[1767474911776,0.05714482,90316.0,90312.0,0.01102715]
[1767474911914,0.02391259,90315.0,90312.0,0.01102715]
[1767474912310,0.03323223,90316.0,90312.0,0.01102715]
[1767474913312,0.05714482,90316.0,90312.0,0.01102715]
[1767474916027,0.04607259,90316.0,90313.0,0.06643561]
[1767474916176,0.02216,90316.0,90313.0,0.06643561]
[1767474916385,0.021161,90316.0,90313.0,0.06643561]
[1767474922618,0.021161,90316.0,90313.0,0.06639004]
[1767474923841,0.021161,90316.0,90313.0,0.06539104]
[1767474924585,0.021161,90316.0,90313.0,0.01002803]
[1767474925362,0.03223323,90316.0,90312.0,0.01102715]
[1767474928445,0.05614303,90316.0,90312.0,0.01102715]
[1767474928665,0.03223323,90316.0,90312.0,0.01102715]
[1767474931055,0.01107235,90315.0,90311.0,0.01107284]
[1767474933602,0.01107235,90315.0,90310.0,0.01107297]
[1767474933802,0.00607235,90315.0,90310.0,0.01107297]
[1767474934482,0.00607235,90315.0,90311.0,0.01107284]
[1767474935409,0.01107248,90314.0,90311.0,0.01102727]
[1767474936933,0.01107248,90314.0,90311.0,0.0109817]
[1767474938255,0.01107248,90314.0,90310.0,0.01107297]
[1767474939475,0.01107248,90314.0,90311.0,0.01107284]
[1767474940126,0.01107248,90314.0,90310.0,0.01107297]
[1767474940538,0.01107248,90314.0,90311.0,0.01107284]
[1767474940831,0.01107248,90314.0,90310.0,0.01107297]
[1767474943061,0.01107248,90314.0,90310.0,0.0602786]
[1767474951126,0.01107248,90314.0,90310.0,0.01107297]
[1767474951541,0.021161,90316.0,90314.0,0.06020463]
[1767474951692,0.021161,90316.0,90315.0,0.05920563]
[1767474952269,0.021161,90316.0,90315.0,0.05748775]
[1767474952700,0.021161,90316.0,90315.0,0.00828212]
[1767474952830,0.00778344,90316.0,90315.0,0.00828212]
[1767474953009,0.00778344,90316.0,90315.0,0.05748775]
[1767474954783,0.00778344,90316.0,90315.0,0.05744219]
[1767474956103,0.00778344,90316.0,90315.0,0.04920563]
[1767474956893,0.02216,90316.0,90315.0,0.04920563]
[1767474959179,0.02216,90316.0,90315.0,0.04820663]
[1767474961344,0.02216,90316.0,90315.0,0.04816107]
[1767474962244,0.02216,90316.0,90314.0,0.06008449]
[1767474967017,0.02216,90316.0,90314.0,0.06003893]
[1767474967714,0.02216,90316.0,90314.0,0.05999337]
[1767474970111,0.01107162,90321.0,90311.0,0.01107284]
[1767474970112,0.03148821,90323.0,90315.0,0.06008436]
[1767474970310,0.02216,90322.0,90320.0,0.04901201]
[1767474970743,0.000999,90320.0,90319.0,0.01107186]
[1767474971095,0.03323149,90322.0,90319.0,0.01107186]
[1767474971550,0.02216,90322.0,90319.0,0.01107186]
[1767474974153,0.04959503,90338.0,90328.0,0.05535356]
[1767474974301,0.000999,90328.0,90327.0,0.01107088]
[1767474974510,0.000999,90328.0,90325.0,0.01107113]
[1767474974728,0.03323051,90330.0,90325.0,0.01107113]
[1767474975251,0.01107076,90328.0,90324.0,0.01107125]
[1767474975407,0.000999,90325.0,90324.0,0.01107125]
[1767474976017,0.01107076,90328.0,90324.0,0.01107125]
[1767474976221,0.02216,90327.0,90324.0,0.01107125]
[1767474977253,0.01107076,90328.0,90324.0,0.01007225]
[1767474977496,0.06642335,90330.0,90326.0,0.04901201]
[1767474977687,0.02216,90329.0,90325.0,0.01107113]
[1767474978876,0.03323064,90329.0,90325.0,0.01107113]
[1767474980257,0.02216,90329.0,90325.0,0.01107113]
[1767474980847,0.03323064,90329.0,90325.0,0.01107113]
[1767474981836,0.00692697,90329.0,90324.0,0.07551129]
[1767474982003,0.01106978,90336.0,90329.0,0.01252275]
[1767474982221,0.01106978,90336.0,90332.0,0.01107027]
[1767474982438,0.01106953,90338.0,90333.0,0.01107015]
[1767474982592,0.01106941,90339.0,90334.0,0.01058173]
[1767474982796,0.01106953,90338.0,90334.0,0.01058173]
[1767474983028,0.01106941,90339.0,90335.0,0.0110699]
[1767474983361,0.01106941,90339.0,90335.0,0.01102435]
[1767474983700,0.01106941,90339.0,90334.0,0.01058173]
[1767474984109,0.01106941,90339.0,90335.0,0.0110699]
[1767474984337,0.01106953,90338.0,90334.0,0.01058173]
[1767474984491,0.06641381,90343.0,90334.0,0.01058173]
[1767474984689,0.01106929,90340.0,90333.0,0.00958302]
[1767474984896,0.00954688,90334.0,90332.0,0.01107027]
[1767474985133,0.01106941,90339.0,90335.0,0.0110699]
[1767474985666,0.01106929,90340.0,90336.0,0.01106978]
[1767474986828,0.01106917,90341.0,90337.0,0.01106966]
[1767474987314,0.01106929,90340.0,90336.0,0.01106978]
[1767474987630,0.00945922,90337.0,90336.0,0.01102424]
[1767474988016,0.01106929,90340.0,90336.0,0.01073477]
[1767474988347,0.01106917,90341.0,90337.0,0.01106966]
[1767474990090,0.01106953,90338.0,90333.0,0.01107015]
[1767474990293,0.01106941,90339.0,90335.0,0.0110699]
[1767474990493,0.01106929,90340.0,90336.0,0.01106978]
[1767474990873,0.01106941,90339.0,90335.0,0.0110699]
[1767474991073,0.00945922,90336.0,90335.0,0.0110699]
[1767474991287,0.01106929,90340.0,90336.0,0.01206878]
[1767474991490,0.01106929,90340.0,90336.0,0.01106978]
[1767474992852,0.08857235,90345.0,90340.0,0.000999]
[1767474993007,0.08857235,90345.0,90340.0,0.00153977]
[1767474993216,0.08857235,90345.0,90340.0,0.01161006]
[1767474993398,0.02212,90344.0,90340.0,0.01106929]
[1767474994066,0.02212,90344.0,90340.0,0.01102375]
[1767474994424,0.06641235,90345.0,90340.0,0.01102375]
[1767474994629,0.02212,90344.0,90340.0,0.01102375]
[1767474995030,0.02212,90344.0,90339.0,0.01106941]
[1767474995229,0.01106904,90342.0,90339.0,0.01106941]
[1767474995424,0.01106904,90342.0,90337.0,0.01106966]
[1767474995637,0.01106917,90341.0,90337.0,0.01106966]
[1767474995840,0.01106904,90342.0,90338.0,0.01106953]
[1767474996214,0.01106904,90342.0,90339.0,0.01106941]
[1767474996421,0.01106892,90343.0,90339.0,0.01106941]
[1767474996751,0.01106904,90342.0,90338.0,0.01106953]
[1767474997156,0.01106892,90343.0,90339.0,0.01106941]
[1767474997683,0.01106892,90343.0,90339.0,0.01077994]
[1767475000689,0.00606892,90343.0,90339.0,0.01077994]
[1767475000891,0.00606892,90343.0,90339.0,0.0107344]
[1767475001131,0.01106904,90342.0,90339.0,0.0107344]
[1767475001285,0.00606892,90343.0,90339.0,0.0107344]
[1767475002105,0.00594048,90343.0,90339.0,0.00919123]
[1767475002309,0.06641235,90345.0,90340.0,0.01106929]
[1767475002901,0.0110688,90344.0,90341.0,0.01106917]
[1767475003132,0.0110688,90344.0,90340.0,0.01106929]
[1767475004081,0.06641235,90345.0,90341.0,0.01106917]
[1767475004283,0.03318843,90347.0,90342.0,0.01106904]
[1767475004584,0.01106855,90346.0,90341.0,0.01106917]
[1767475004742,0.00945922,90342.0,90341.0,0.01106917]
[1767475004945,0.01106843,90347.0,90342.0,0.01206804]
[1767475005339,0.01106843,90347.0,90343.0,0.01106892]
[1767475005936,0.01106831,90348.0,90344.0,0.05678308]
[1767475006176,0.02747798,90349.0,90344.0,0.05163948]
[1767475006352,0.02747798,90349.0,90344.0,0.00541084]
[1767475006560,0.01106794,90351.0,90346.0,0.01106855]
[1767475006758,0.01106794,90351.0,90347.0,0.01106843]
[1767475006964,0.01106806,90350.0,90346.0,0.01097746]
[1767475007339,0.01106782,90352.0,90347.0,0.01106843]
[1767475007565,0.01106782,90352.0,90350.0,0.000999]
[1767475007948,0.01106782,90352.0,90349.0,0.01106819]
[1767475008151,0.00945922,90349.0,90348.0,0.01106831]
[1767475008560,0.01106794,90351.0,90347.0,0.01106843]
[1767475009374,0.01106782,90352.0,90348.0,0.01106831]
[1767475010645,0.05533896,90353.0,90349.0,0.01106819]
[1767475010784,0.06640666,90353.0,90349.0,0.01106819]
[1767475011539,0.01106782,90352.0,90348.0,0.01106831]
[1767475012474,0.06640666,90353.0,90349.0,0.01106819]
[1767475012695,0.01106782,90352.0,90348.0,0.01106831]
[1767475013079,0.01106782,90352.0,90348.0,0.01077884]
[1767475014460,0.05533701,90356.0,90351.0,0.01106794]
[1767475014664,0.01106733,90356.0,90352.0,0.000999]
[1767475014862,0.01106733,90356.0,90352.0,0.01206682]
[1767475014863,0.01106745,90355.0,90352.0,0.01206682]
[1767475015084,0.01106745,90355.0,90352.0,0.00095346]
[1767475015305,0.01106745,90355.0,90351.0,0.01106794]
[1767475015668,0.06640549,90354.0,90350.0,0.01106806]
[1767475015908,0.01106782,90352.0,90348.0,0.01077884]
[1767475016157,0.0110677,90353.0,90348.0,0.01077884]
[1767475016353,0.01106757,90354.0,90350.0,0.01106806]
[1767475017096,0.01106757,90354.0,90349.0,0.01106819]
[1767475017296,0.01106757,90354.0,90350.0,0.01106806]
[1767475017825,0.01106757,90354.0,90351.0,0.01106794]
[1767475017959,0.01106757,90354.0,90350.0,0.01106806]
[1767475018380,0.01106745,90355.0,90351.0,0.01106794]
[1767475018795,4.6e-05,90351.0,90350.0,0.01106806]
[1767475019006,0.01106745,90355.0,90352.0,0.01106782]
[1767475019202,0.06640401,90356.0,90352.0,0.01106782]
[1767475019488,0.06640401,90356.0,90351.0,0.01106794]
[1767475019489,0.01106745,90355.0,90351.0,0.01106794]
[1767475020649,0.01106757,90354.0,90350.0,0.01106806]
[1767475021741,0.01106757,90354.0,90351.0,0.01106794]
[1767475022940,0.01106757,90354.0,90350.0,0.01106806]
[1767475023175,0.0110677,90353.0,90349.0,0.01106819]
[1767475023377,0.00850622,90350.0,90349.0,0.01106819]
[1767475023558,0.00750722,90350.0,90349.0,0.01106819]
[1767475023761,0.05963039,90353.0,90349.0,0.01106819]
[1767475025684,0.04856269,90353.0,90350.0,0.01106806]
[1767475026091,0.05963014,90355.0,90351.0,0.01106794]
[1767475026249,0.01106757,90354.0,90350.0,0.01106806]
[1767475027081,0.00750722,90350.0,90348.0,0.01077884]
[1767475027482,0.01106782,90352.0,90348.0,0.01077884]
[1767475027634,0.06640588,90354.0,90349.0,0.01106819]
[1767475027884,0.0110677,90353.0,90349.0,0.01106819]
[1767475028308,0.000999,90349.0,90348.0,0.01077884]
[1767475028599,0.000999,90349.0,90344.0,0.07750351]
[1767475028600,0.06641097,90347.0,90344.0,0.02216]
[1767475029209,0.06641097,90347.0,90344.0,0.021161]
[1767475029788,0.06641097,90347.0,90344.0,0.02111546]
[1767475029926,0.01106843,90347.0,90344.0,0.02111546]
[1767475030524,0.06641099,90347.0,90344.0,0.02111546]
[1767475031552,0.01106843,90347.0,90344.0,0.02111546]
[1767475031756,0.01006943,90347.0,90344.0,0.02111546]
[1767475032818,0.01106831,90348.0,90344.0,0.03218426]
[1767475033018,0.01106831,90348.0,90347.0,0.00249278]
[1767475033221,0.01106831,90348.0,90344.0,0.03218426]
[1767475036864,0.01106843,90347.0,90344.0,0.02111546]
[1767475037749,0.01117608,90347.0,90344.0,0.02111546]
[1767475037962,0.01117608,90347.0,90344.0,0.03218426]
[1767475038160,0.01117608,90347.0,90344.0,0.02111546]
[1767475039285,0.01117608,90347.0,90344.0,0.02107164]
[1767475039848,0.00010765,90347.0,90344.0,0.03214044]
[1767475041551,0.00940634,90350.0,90348.0,0.00238513]
[1767475042070,0.00940634,90350.0,90348.0,0.00233959]
[1767475042630,0.05963063,90351.0,90347.0,0.01106843]
[1767475043006,0.05963063,90351.0,90348.0,0.01106831]
[1767475043220,0.05963063,90351.0,90348.0,0.01077887]
[1767475044242,0.01106794,90351.0,90348.0,0.01077887]
[1767475045611,0.05963051,90352.0,90348.0,0.06612039]
[1767475045746,0.01106782,90352.0,90348.0,0.06612039]
[1767475046813,0.11496939,90353.0,90349.0,0.01106819]
[1767475046952,0.11496939,90353.0,90349.0,0.01020119]
[1767475047296,0.04856269,90353.0,90350.0,0.01106806]
[1767475050662,0.05963039,90353.0,90349.0,0.01020119]
[1767475050867,0.05642418,90352.0,90348.0,0.01077887]
[1767475053628,0.01106794,90351.0,90347.0,0.01077897]
[1767475053834,0.05642418,90352.0,90348.0,0.01106831]
[1767475054168,0.05642418,90352.0,90348.0,0.01102449]
[1767475055799,0.0110677,90353.0,90349.0,0.01106819]
[1767475055939,0.05689027,90353.0,90349.0,0.01106819]
[1767475057309,0.0110677,90353.0,90349.0,0.01106819]
[1767475057709,0.0664059,90354.0,90353.0,0.000999]
[1767475057864,0.0664059,90354.0,90350.0,0.01106806]
[1767475058105,0.01106757,90354.0,90350.0,0.01077864]
[1767475058287,0.01106757,90354.0,90350.0,0.01048921]
[1767475058918,0.01106757,90354.0,90350.0,0.01044539]
[1767475059363,0.01106757,90354.0,90351.0,0.01106794]
[1767475061173,0.01106745,90355.0,90351.0,0.01106794]
[1767475064884,0.05689002,90355.0,90351.0,0.01106794]
[1767475068153,0.05689002,90355.0,90352.0,0.01106782]
[1767475068730,0.04582257,90355.0,90352.0,0.01106782]
[1767475070617,0.04582257,90355.0,90351.0,0.01106794]
[1767475070848,0.04582257,90354.0,90350.0,0.05985804]
[1767475071880,0.05689014,90354.0,90350.0,0.05985804]
[1767475073376,0.05689014,90354.0,90350.0,0.05533993]
[1767475074050,0.05689014,90354.0,90350.0,0.06640799]
[1767475074283,0.05689014,90354.0,90351.0,0.01106794]
[1767475074454,0.04582257,90354.0,90351.0,0.01106794]
[1767475075312,0.04582257,90354.0,90350.0,0.06640799]
[1767475075495,0.04582257,90354.0,90351.0,0.01106794]
[1767475076734,0.04582257,90354.0,90351.0,0.01048916]
[1767475077585,0.04582257,90354.0,90351.0,0.01044534]
[1767475077787,0.0568899,90356.0,90354.0,0.000999]
[1767475078075,0.0344409,90356.0,90352.0,0.01106782]
[1767475078871,0.04550823,90356.0,90352.0,0.01106782]
[1767475080981,0.04550823,90356.0,90353.0,0.0110677]
[1767475081340,0.04550823,90356.0,90353.0,0.0110227]
[1767475082267,0.04662915,90355.0,90353.0,0.0110227]
[1767475084169,0.04662915,90355.0,90352.0,0.01106782]
[1767475088216,0.0576966,90355.0,90351.0,0.01044534]
[1767475088803,0.05769672,90354.0,90350.0,0.01106806]
[1767475090379,0.04662915,90354.0,90351.0,0.01106794]
[1767475091294,0.04662915,90354.0,90351.0,0.01077849]
[1767475092008,0.04662915,90354.0,90351.0,0.06611783]
[1767475092242,0.04329056,90354.0,90351.0,0.06582841]
[1767475092917,0.01106733,90356.0,90351.0,0.06582841]
[1767475092918,0.01106721,90357.0,90353.0,0.0553385]
[1767475093074,0.03342208,90358.0,90354.0,0.01106757]
[1767475093282,0.05732438,90358.0,90354.0,0.01102206]
[1767475093519,0.05732438,90358.0,90354.0,0.01097824]
[1767475095751,0.05732438,90358.0,90355.0,0.01106745]
[1767475095930,0.022355,90358.0,90355.0,0.06640433]
[1767475097053,0.03342208,90358.0,90354.0,0.06631559]
[1767475097258,0.01106721,90357.0,90353.0,0.0110677]
[1767475100023,0.03342208,90358.0,90354.0,0.01106757]
[1767475100205,0.03342208,90358.0,90354.0,0.01102375]
[1767475101605,0.08005123,90358.0,90354.0,0.01102375]
[1767475105373,0.08005123,90358.0,90354.0,0.01097993]
[1767475105530,0.08005123,90358.0,90354.0,0.01093442]
[1767475107301,0.08005123,90358.0,90354.0,0.01064502]
[1767475108360,0.03342208,90358.0,90354.0,0.01064502]
[1767475108972,0.08005123,90358.0,90354.0,0.01064502]
[1767475110732,0.05852367,90357.0,90353.0,0.0110677]
[1767475111328,0.05871182,90356.0,90352.0,0.06640659]
[1767475111841,0.01106745,90355.0,90351.0,0.01048907]
[1767475112250,0.05871182,90356.0,90352.0,0.01077844]
[1767475113589,0.05871182,90356.0,90351.0,0.02660685]
[1767475113765,0.01106733,90356.0,90351.0,0.02660685]
[1767475113965,0.01106721,90357.0,90352.0,0.06640656]
[1767475114873,0.01106721,90357.0,90353.0,0.0110677]
[1767475117434,0.01106721,90357.0,90353.0,0.01077832]